{"text_format":"1","workbook":"xlsx","n_sheets":6,"sheets":["Guida alla compilazione","Sezione I","Sezione II","Sezione III","Liste di controllo - quest LTS","FORMULE"],"not_rendered":{"charts":0,"images":1,"macros":1,"external_links":0,"defined_names":0,"comments":0,"pivot_tables":0},"unopened":[],"bounds":{"document_bytes":16777216,"sheet_cells":100000,"rows_first":2000,"rows_last":500,"rows_between":2000,"halvings":0,"cell_chars":16384,"cell_head_chars":4096},"cells_cut":0,"cells_raw":0,"read":"whole","date_system":"1900"}

{"sheet":"Guida alla compilazione","index":0,"n_rows":24,"n_cols":1,"rows_kept":24,"cut":false,"hidden":false,"merged":[[17,0,17,7],[21,0,21,7],[20,0,20,7],[23,0,23,7],[14,0,14,7],[10,0,10,7],[13,0,13,7],[0,0,0,7],[1,0,1,7],[2,0,2,7],[3,0,3,7],[9,0,9,7],[4,0,4,7],[5,0,5,7],[6,0,6,7],[7,0,7,7],[8,0,8,7]]}
["Introduzione "]
["Riconoscendo che il cambiamento climatico rappresenta una minaccia urgente per le società e il pianeta, l'Accordo di Parigi impegna i Paesi a mantenere l’innalzamento della temperatura media globale al di sotto dei 2°C e di perseguire tutti gli sforzi necessari a limitarne l'aumento a 1,5°C rispetto ai livelli pre-industriali. A tal fine, l'Accordo definisce un obiettivo di lungo termine che permetta il raggiungimento dell'equilibrio tra le emissioni e gli assorbimenti di gas a effetto serra entro la seconda metà del secolo. Le Parti dell’Accordo di Parigi dovranno comunicare entro il 2020 la loro Strategie di sviluppo a basse emissioni di gas serra a lungo termine, in modo da mostrare come contribuiranno all'obiettivo di lungo termine dell'Accordo."]
["In questo contesto, il 28 novembre 2018, la Commissione europea ha presentato la Comunicazione “A Clean Planet for all - una visione strategica a lungo termine per un'economia prospera, moderna, competitiva e neutrale dal punto di vista climatico entro il 2050”. L’obiettivo della Strategia a Lungo Termine (LTS) è quello di reiterare l’impegno dell’Europa a guidare l’azione internazionale per il clima e di delineare una transizione verso l’azzeramento delle emissioni nette di gas a effetto serra entro il 2050, che sia equa sul piano sociale ed efficiente in termini di costi."]
["L’Italia ha avviato i lavori per la predisposizione della propria Strategia di lungo termine e dovrà riflettere sulle opportunità e sulle sfide derivanti dalla transizione verso un’economia a basse emissioni e in particolare su come:"]
["·              Modernizzare l’economia;"]
["·              Migliorare la qualità di vita dei cittadini;"]
["·              Assicurare la giusta transizione affrontando le sfide sociali che ne derivano;"]
["·              Re-industrializzare attraverso innovazioni digitali, circolari e a basse emissioni e la mobilità pulita;"]
["·              Promuovere una competizione globale dei mercati, del commercio e degli investimenti che sia equa e sostenibile."]
["La Strategia analizzerà una serie di scenari di decarbonizzazione, in linea con l’Accordo di Parigi, considerando tutti i settori chiave dell’economia: energia, edilizia, trasporto e mobilità, produzione industriale e prestazioni dei servizi, rifiuti, agricoltura e uso del suolo, nonché uso delle risorse naturali. Esaminerà il potenziale e le implicazioni dell’utilizzo di tecnologie innovative, dell’integrazione settoriale, nonché le implicazioni per la sicurezza degli approvvigionamenti, degli investimenti, della competitività e dei fattori socio-economici. Un ruolo chiave nella transizione sarà rivestito dai cittadini, che tramite le loro scelte e modelli comportamentali, potranno contribuire significativamente al processo di transizione."]
["Le visioni e le riflessioni di tutti i soggetti interessati forniranno input importanti per questo processo. Tali visioni aiuteranno ad arricchire la valutazione di cosa l’Italia dovrebbe e potrebbe fare per contribuire al raggiungimento degli impegni sottoscritti con l’Accordo di Parigi."]
[]
[]
["Guida al Questionario"]
["\nPer partecipare alla consultazione pubblica non si è tenuti a compilare l’intero questionario. Le diverse sezioni includono domande sulla riduzione dei gas serra, l’impatto sui consumatori, le attività economiche, l’energia, le foreste e l’uso del suolo, l’educazione e la ricerca, i finanziamenti, gli attori coinvolti e l’adattamento ai cambiamenti climatici.  \nLa sezione 1 è dedicata a delineare il profilo di colui che compila il questionario. \nLa sezione 2, che costituisce la parte centrale del questionario, è di carattere generale.\nLa sezione 3 è, invece, più concentrata sui settori direttamente interessati dalla strategia di decarbonizzazione ed è maggiormente dedicata agli attori che operano in tali settori, quali industria, trasporti, agricoltura, uso del suolo. \nPer facilitare l'elaborazione successiva dei dati, la compilazione del questionario è guidata e prevede alcune domande a risposta multipla e altre in cui è possibile aggiungere testo libero e commenti. Anche per queste ultime risposte si chiede di esprimere commenti brevi, sulla base del numero di caratteri indicato. \n"]
["Avvertenze tecniche per la compilazione del modulo:"]
[]
["Il modulo è in formato Excel ed è composto di tre sezioni distinte, ciascuna in un diverso foglio. Per passare da un foglio all'altro è sufficiente cliccare con il mouse in corrispondenza delle linguette che si trovano in fondo alla schermata e che riportano le etichette 'Sezione I', 'Sezione II' e 'Sezione III', come mostrato nella seguente immagine. "]
[]
[]
["Sarà possibile inserire del testo, sia esso pre-impostato o libero, nelle sole celle di colore verde"]
["Si specifica che il contributo fornito è soggetto al Decreto Legislativo 19 agosto 2005, n. 195, in attuazione della direttiva 2003/4/CE, che disciplina l’accesso del pubblico all’informazione ambientale.\nPer tutti gli aspetti non specificamente regolati dal d.l. 195/2005, trova applicazione la più generale normativa sull'accesso ai documenti amministrativi, contenuta nella legge 241/90 e nel d.l. 33/2013 come modificato dal d.l. 97/2016, e relativi regolamenti attuativi.\n"]
[]
["Autorizzazione all'utilizzo dei dati\nAl fine di consentire l'utilizzo delle informazioni fornite attraverso il questionario, mediante la compilazione e l'invio di tale questionario si autorizza la Pubblica Amministrazione all'utilizzo dei dati ivi contenuti ai fini della elaborazione della Strategia di Lungo Termine per la decarbonizzazione dell'economia dell'Italia, ai sensi del D. Lgs.196/2003. "]

{"sheet":"Sezione I","index":1,"n_rows":69,"n_cols":2,"rows_kept":69,"cut":false,"hidden":false,"merged":[]}
["Sezione I - Informazioni Generali sugli Intervistati"]
[]
["In quale veste si intende compilare il seguente questionario?"]
[]
[]
["Si fornisca il nominativo se in veste individuale/privata, altrimenti si fornisca di seguito il nome della propria organizzazione (tra 3 e 100 caratteri):"]
[]
["Indirizzo Email:"]
[]
["Se si compila il questionario in veste individuale, inserire di seguito lo stato di residenza; per i professionisti, inserire lo stato di appartenenza della sede legale dell'impresa/organizzazione:"]
[]
["Se Altro, specificare di seguito:"]
[]
["Tipo di organizzazione (si prega di selezionare la risposta che meglio si adatta):"]
[]
["Se Altro, specificare di seguito:"]
[]
[]
["Si indichino i settori economici in cui si è attivi (come individuo o organizzazione):"]
[]
["Se Altro, specificare di seguito:"]
[]
[]
[]
[]
[]
[]
["Se si rappresenta un’organizzazione della società civile o un'amministrazione pubblica, si indichino le proprie principali aree di competenza:"]
[]
[]
["Se si sta inviando il questionario a nome di una organizzazione, indicare la dimensione dell'organizzazione:"]
[]
[]
[]
[]
[]
[]
[]
[]
[]
[]
[]
[]
[]
[]
[]
[]
[]
[]
[]
[]
[]
[]
[]
[]
[]
[]
[]
[]
[]
[]
[]
[]
[]
[]
[]
[]
[]
[null," "]

{"sheet":"Sezione II","index":2,"n_rows":330,"n_cols":1,"rows_kept":330,"cut":false,"hidden":false,"merged":[[206,0,206,1],[177,0,177,1],[174,0,174,1],[167,0,167,1],[168,0,168,1],[165,0,165,1],[158,0,158,1],[137,0,137,1],[115,0,115,1],[187,0,187,1],[185,0,185,1],[180,0,180,1],[181,0,181,1],[178,0,178,1],[175,0,175,1],[171,0,171,1],[161,0,161,1],[155,0,155,1],[152,0,152,1],[141,0,141,1],[134,0,134,1],[131,0,131,1],[154,0,154,1],[151,0,151,1],[30,0,30,1],[24,0,24,1],[6,0,6,1],[79,0,79,1],[57,0,57,1],[42,0,42,1],[36,0,36,1],[109,0,109,1],[102,0,102,1],[99,0,99,1],[96,0,96,1],[46,0,46,1],[21,0,21,1],[12,0,12,1],[48,0,48,1],[39,0,39,1],[33,0,33,1],[27,0,27,1],[38,0,38,1],[32,0,32,1],[140,0,140,1],[130,0,130,1],[128,0,128,1],[124,0,124,1],[111,0,111,1],[54,0,54,1],[51,0,51,1],[86,0,86,1],[83,0,83,1],[76,0,76,1],[73,0,73,1],[70,0,70,1],[67,0,67,1],[82,0,82,1],[75,0,75,1],[108,0,108,1],[106,0,106,1],[101,0,101,1],[95,0,95,1],[93,0,93,1],[85,0,85,1],[112,0,112,1],[226,0,226,1],[227,0,227,1],[232,0,232,1],[233,0,233,1],[239,0,239,1],[258,0,258,1],[5,0,5,1],[4,0,4,1],[0,0,0,1],[212,0,212,1],[214,0,214,1],[203,0,203,1],[207,0,207,1],[26,0,26,1],[20,0,20,1],[19,0,19,1],[14,0,14,1],[10,0,10,1],[11,0,11,1],[66,0,66,1],[65,0,65,1],[64,0,64,1],[53,0,53,1],[47,0,47,1],[276,0,276,1],[278,0,278,1],[279,0,279,1],[287,0,287,1],[289,0,289,1],[292,0,292,1],[261,0,261,1],[262,0,262,1],[267,0,267,1],[269,0,269,1],[272,0,272,1],[275,0,275,1],[270,0,270,1],[273,0,273,1],[313,0,313,1],[330,0,330,1],[329,0,329,1],[295,0,295,1],[298,0,298,1],[301,0,301,1],[307,0,307,1],[305,0,305,1],[308,0,308,1]]}
["Sezione II - Questionario generale "]
[]
["Decarbonizzazione"]
[]
["Per contenere l'innalzamento della temperatura media globale, l’Accordo di Parigi (Art. 4.1) definisce un obiettivo di lungo termine che garantisce il raggiungimento dell'equilibrio tra le emissioni e gli assorbimenti nella seconda metà del secolo. Affrontare il cambiamento climatico è una sfida globale che richiede azioni conseguenti da parte di tutti i paesi firmatari dell’Accordo: il presente questionario è volto a comprendere l'opinione degli intervistati circa le azioni che l'Italia dovrebbe intraprendere a tal fine. "]
["Si richiede di indicare le pricipali opportunità e sfide che il raggiungimento degli obiettivi dell'Accordo comportano, nell'opinione dell'intervistato:"]
[]
[]
["Ruolo dei consumatori"]
[]
["In un'ottica di lungo periodo, in aggiunta all’utilizzo di tecnologie, anche le scelte del consumatore rivestono  un ruolo chiave nel raggiungere la decarbonizzazione dell'economia. Si risponda alle seguenti domande a seconda delle proprie abitudini, se si risponde in quanto individuo, ovvero, a seconda delle pratiche adottate dall’organizzazione. \n"]
["Nella opinione dell'intervistato, quali aspetti della  vita di tutti i giorni saranno maggiormente influenzati dalle azioni da intraprensere per far fronte alla sfida del cambiamento climatico?\n"]
[]
[]
["Nei successivi paragrafi si intende comprendere se l'intervistato, a proprio nome o della propria organizzazione, abbia un ruolo proattivo nell'attuare le scelte che permettono di ridurre le emissioni di gas a effetto serra nei settori da cui esse provengono. "]
[]
["Settore civile "]
["Consumo di Energia"]
[]
["Nel presente paragrafo si intende comprendere in che misura gli intervistati potrebbero supportare le seguenti opzioni che permettono di ridurre il consumo energetico e, quindi, le emissioni di gas serra dal settore civile. Sei disposto/interessato a:\n"]
["Migliorare ulteriormente la prestazione energetica (isolamento, tripli vetri, etc.) dell'edificio/degli edifici sui quali è possibile intervenire?\n"]
[]
[]
["Se per altri motivi, specificare quali:"]
[]
[]
["Installare impianti di riscaldamento e raffreddamento e utilizzare elettrodomestici con la migliore certificazione di prestazione energetica?\n"]
[]
[]
["Se per altri motivi, specificare:"]
[]
[]
["Avvalerti di fornitori di elettricità non derivante da fonti fossili o contribuire direttamente alla produzione elettrica da fonti rinnovabili per il proprio consumo (ad esempio, mediante installazione di pannelli fotovoltaici)?"]
[]
[" "]
["Se per altri motivi, specificare:"]
[]
[]
["Installare un contatore intelligente e consumare elettricità principalmente quando i prezzi sono bassi?"]
[]
[]
["Se per altri motivi, si specifichino quali:"]
[]
[]
[]
["Rifiuti domestici"]
["Nel presente paragrafo si intende comprendere se l'intervistato partecipi attivamente alla separazione dei rifiuti. "]
["Credi che l’aumento del riciclo e del riutilizzo siano importanti per raggiungere la riduzione dei gas serra?"]
[]
[]
["Separi i tuoi rifiuti (carta, plastica, vetro, metallo, organico…)?"]
[]
[]
["Cosa farebbe aumentare la tua separazione dei rifiuti (carta, plastica, vetro, metallo, organico…)?"]
[]
[]
["Se Altro, specificare:"]
[]
[]
[]
[]
[]
[]
["Mobilità"]
["Nel presente paragrafo si intende comprendere la propensione dell'intervistato ad intraprendere scelte a basse emissioni nel settore trasporti ed evidenziare gli eventuali ostacoli percepiti in tal senso. "]
["In che misura supporteresti le seguenti opzioni che permettono di ridurre il consumo energetico e le relative emissioni di CO2?"]
["Comprare un veicolo che non utilizza benzina o diesel (ad esempio, una macchina elettrica)?"]
[]
[]
["Considerare servizi di car sharing?"]
[]
[]
["Per viaggi brevi, evitare la macchina privata e usare i servizi pubblici?"]
[]
[]
["Per distanze più lunghe, evitare il trasporto aereo o stradale privato ogni qualvolta fosse disponibile un’alternativa?"]
[]
[]
["Se 'No, per altri motivi', specificare quali:"]
[]
[]
[]
["Credi che una migliore pianificazione urbana possa ridurre l’uso di auto private e la congestione stradale?"]
[]
[]
["Credi che utilizzare più strumenti informatici come il telelavoro o le videoconferenze possa ridurre i bisogni di spostamento?"]
[]
[]
[]
[]
[]
[]
["Alimentazione"]
["La produzione di cibo, la sua trasformazione e distribuzione hanno un impatto sulle emissioni di gas serra e sul consumo di risorse naturali."]
[]
["Sarebbe importante una maggiore informazione e sensibilizzazione in merito all’impatto dei vari tipi di alimentazione sul clima?"]
[]
[]
["Considereresti l’impatto sul clima di un certo alimento al momento dell'acquisto? "]
[]
[]
["Prendendo anche in considerazione l’importanza di avere una dieta bilanciata per motivi di salute, considereresti una dieta che prevede il consumo di cibo con minore impatto sul clima (ad esempio ridurre il consumo di carne rossa)?"]
[]
[]
[]
["Servizi e Beni di Consumo"]
["La produzione e il consumo di beni/servizi hanno un impatto sul consumo di energia e in termini di emissioni di gas serra."]
[]
["Prendi mai in considerazione l’impatto che l’acquisto e il consumo di un bene o servizio avrà sulle emissioni di gas serra?"]
[]
[]
["Valuteresti l'acquisto di prodotti e servizi da imprese che producono i loro beni e servizi a zero emisssioni di gas serra? "]
[]
[]
["Se Altro, specificare:"]
[]
[]
[]
[]
[]
[]
[]
["Il tuo lavoro e il tuo settore economico"]
[]
["Si ricorda che le informazioni generali inerenti l'identificazione dei soggetti che rispondono al questionario, siano essi individui o organizzazioni, devono essere inserite nella sezione 1. "]
[]
[]
["Occupazione e transizione economica socialmente giusta ed equa"]
["Nei prossimi decenni, la transizione verso un’economia a basse emissioni di carbonio impatterà ancora di più il modo in cui lavoriamo e produciamo beni e servizi. Si chiede agli intervistati di esprimersi sulle seguenti domande. "]
[]
["Ti aspetti che la tua compagnia crei o riduca i propri i posti di lavoro a causa della transizione verso un'economia a basse emissioni?"]
[]
[]
["Cosa potrebbe maggiormente influenzare il tuo lavoro nel futuro?"]
[]
[]
["Se Altro, specificare:"]
[]
[]
[]
["Credi che sarebbe utile una attività di formazione nell'ambito lavorativo finalizzata a favorire la transizione verso una economia a basse emissioni?"]
[]
[]
[]
[]
[]
[]
[]
[]
["L’impatto della transizione verso un'economia a basse emissioni nel tuo settore"]
[]
["Consideri la transizione verso un'economia a basse emissioni come un’opportunità o una sfida per il tuo settore?"]
[]
[]
["Quanto ritieni che il tuo settore possa ridurre le proprie emissioni di gas serra entro il 2050, rispetto ad oggi?"]
[]
[]
["Quale sarebbe il percorso più indicato per ridurre queste emissioni nel tuo settore?"]
[]
[]
["Se Altro, specificare:"]
[]
[]
[]
["Investirai (tu o il tuo settore) in nuove tecnologie a basse emissioni di carbonio?"]
[]
[]
["Pensi che il tuo settore possa essere maggiormente integrato con altri al fine di ridurre le emissioni e aumentare l'efficienza complessiva del sistema?"]
[]
[]
["Se sì, come e a quali settori?"]
[]
[]
[]
["Credi che la transizione verso un'economia a basse emissioni potrà portare un cambiamento del sistema economico del Paese verso:"]
[]
[]
["Credi che la  transizione verso un'economia a basse emissioni possa aiutare l’industria italiana a modernizzarsi e crescere?"]
[]
[]
["Come possono essere affrontate le opportunità e le sfide (in particolare in relazione a settori e regioni ad alte emissioni di gas serra)? Quali trasformazioni economiche dovrebbe perseguire l'Italia per raggiungere un’economia a basse emissioni?"]
[]
[]
[]
["Settore energetico"]
["Il sistema energetico, oggi responsabile di circa l'80% delle emissioni dei gas serra in Italia (escluso LULUCF - uso del suolo, cambiamento di uso del suolo e selvicoltura), ha da tempo avviato una importante transizione, favorita da coerenti politiche europee e nazionali, caratterizzata dalla riduzione dei costi delle fonti rinnovabili, dall’aumento dell’efficienza energetica e dallo sviluppo di nuove tecnologie (batterie ecc.) . Accelerare ulteriormente questo cambiamento sarà essenziale nel percorso verso un’economia a basse emissioni."]
[]
["La seguente tabella presenta diverse tecnologie energetiche: si valuti ogni opzione da 1 (importante) a 5 (non importante) in base al ruolo che si crede giocherà nella transizione verso l’energia pulita (non tutte le opzioni devono essere valutate)."]
[]
["L’efficienza energetica che riduce il bisogno di produrre energia"]
["Energie rinnovabili: eolico, solare, idroelettrico "]
["Altre energie rinnovabili: ad esempio, geotermiche, o da sfruttamento del moto ondoso e delle maree"]
["Biogas da rifiuti agricoli e domestici"]
[]
["Biomassa solida per riscaldamento e produzione elettrica"]
["Biocombustibili liquidi avanzati (ad esempio bioetanolo da fecce e vinacce)"]
["Idrogeno (prodotto da fonti rinnovabili)"]
["Combustibili derivanti da idrogeno prodotto da rinnovabili"]
["Combustibili fossili con sistemi di Cattura e Stoccaggio del Carbonio (CCS)"]
["Accumulo di elettricità (ad es. batterie)"]
["Altro"]
[]
["Se Altro, specificare:"]
[]
[]
[]
["Quali ritieni siano le più grandi opportunità della transizione per l'intero sistema economico nazionale? Quali le più grandi sfide, ivi incluse quelle riguardanti l'accettabilità da parte dell'opinione pubblica e la disponibilità di risorse naturali e suolo, in relazione ai cambiamenti necessari per la transizione?"]
[]
["Massimo 2000 caratteri "]
[]
[]
["Il ruolo delle Foreste e dell’Uso del Suolo"]
["In Italia, le foreste, i terreni agricoli, i prati e pascoli e le altre categorie del settore LULUCF (uso del suolo, cambiamento di uso del suolo e selvicoltura) assorbono più CO2 di quanta ne emettono, sequestrando carbonio (C sink). Le foreste e i terreni agricoli producono biomasse rinnovabili che possono essere usate per sostituire altri prodotti altamente emissivi o per produrre bioenergie, riducendo le emissioni di gas serra derivanti dall'uso dei combustibili fossili e dei processi industriali. La modalità di produzione di tale biomassa può incidere sulla capacità di assorbimento delle foreste e dei terreni agricoli ed avere impatti sulla biodiversità e sugli ecosistemi. "]
[]
["Nel contesto di una strategia a lungo termine si valuti ogni uso del suolo riportato nella seguente tabella con una scala da 1 (importante) a 5 (non importante), indicando quali sono quelli più accettabili e che possono essere importanti per ridurre le emissioni di gas serra e aumentare l’assorbimento di CO2 (non tutte le opzioni devono essere valutate):"]
[]
["Foresta come fonte di biomassa per energie rinnovabili"]
["Foresta come una fonte di materiale per prodotti a base biologica (ed es. bioplastiche) "]
["Foresta come un assorbimento di CO2"]
["Agricoltura come fonte di materie prime per materiali a base biologica (materiali per eco-edilizia)"]
["Agricoltura come fonte di bio-energia:"]
["1. basata su colture alimentari"]
["2. basata su scarti agricoli"]
["3. basata su biomassa legnosa (per es. piante perenni, colture legnose ed erbacee, bosco ceduo a rotazione rapida)"]
["Proteggere e rafforzare le riserve di carbonio nei terreni agricoli"]
[]
["Quanto può contribuire l'uso del suolo all’assorbimento delle emissioni? Per quale scopo dovrebbe essere principalmente utilizzata la biomassa per ridurre le emissioni di gas serra? Come e quali aspetti legati alla sostenibilità dovrebbero essere affrontati?"]
[]
[]
[]
["Educazione, ricerca e innovazione"]
[]
["Considerando la visione a lungo termine della strategia, la ricerca e l’innovazione avranno un ruolo cruciale per facilitare la transizione verso un'economia a basse emissioni."]
["Come potrebbe essere accresciuta la consapevolezza della questione climatica per incidere sui valori e determinare un comportamento virtuoso? "]
["Al massimo 3 scelte (mettere una x a lato della scelta)"]
["Attraverso la formazione scolastica"]
["Campagne di formazione e informazione locali e regionali"]
["Campagne di informazione nazionali e dell’UE"]
[]
["In quali settori dovrebbero concentrarsi primariamente gli sforzi di Ricerca e Sviluppo nel prossimo decennio per meglio supportare la transizione verso un'economia a basse emissioni?"]
["Al massimo 3 scelte (mettere una x a lato della scelta)"]
["Energia"]
["Processi industriali"]
["Trasporti"]
["Informatica"]
["Agricoltura"]
["Altri settori"]
[]
[]
[]
[]
[]
[]
[]
[]
[]
[]
["Se Altri settori, specificare:"]
[]
[]
[]
["C’è bisogno della diffusione su larga scala di alcune tecnologie innovative in particolare? Qual è il differente ruolo del settore pubblico e privato nel promuovere Ricerca, Sviluppo e Innovazione?"]
[]
[]
[]
[]
["Finanziamento"]
["In molti casi,  la transizione verso un'economia a basse emissioni ha bisogno di investimenti  che, se da un lato hanno un impatto positivo in termini di competitività/efficienza del sistema, dall'alltro, possono avere dimensione significativa ed tempi di rientro lunghi. "]
[]
["Il settore in cui operi avrà bisogno di significativi investimenti addizionali nel contesto della transizione ad un’economia a basse emissioni?"]
[]
[]
["Per il settore in cui operi, esiste oggi una carenza di finanziamento rispetto agli investimenti necessari alla transizione?"]
[]
[]
["Il settore pubblico dovrebbe essere più coinvolto nel finanziare la transizione nel settore in cui operi?"]
[]
[]
["Considereresti che, nel tuo settore, le imprese sono sufficientemente trasparenti riguardo ai rischi finanziari che affrontano a causa del cambiamento climatico e la transizione verso un’economia a basse emissioni ?"]
[]
[]
[]
[]
[]
["Meta tendenze "]
[]
["Quali effetti credi che le seguenti tendenze abbiano nel ridurre le emissioni di gas serra?"]
[]
["Transizione verso un’economia più circolare"]
[]
[]
["Digitalizzazione, inclusa la robotica e l’intelligenza artificiale"]
[]
[]
["Economia basata sulla condivisione di beni e servizi (Shared economy)"]
[]
[]
["Ulteriore integrazione dei settori oltre i confini attraverso la globalizzazione"]
[]
[]
["Attori coinvolti"]
["Gli enti territoriali e locali, la società civile e il settore privato possono giocare un ruolo importante nel raggiungere la trasformazione energetica, nel ridurre le emissioni di gas serra e nell’adattarsi al cambiamento climatico. Infatti, molte città, industrie e organizzazioni di cittadini stanno attuando la transizione verso un’economia a basse emissioni attraverso progetti che trattano di energia, trasporti, alimentazione e gestione dei rifiuti, spesso raggiungendo importanti co-benefici locali relativi allo sviluppo economico, sanitario e del benessere."]
[]
[]
["Quali di questi attori non statali contribuiranno maggiormente alla transizione?"]
[]
[]
["Hai un esempio che credi sia di particolare importanza nel sottolineare il ruolo di tali attori locali e del settore privato nel supportare la transizione verso un’economia a basse emissioni?"]
[]
[]
[]
["Adattamento"]
[]
["Gli effetti avversi del cambiamento climatico richiedono azioni di \"adattamento\". Nel tuo luogo di residenza, quale delle seguenti azioni credi saranno necessarie per prepararsi per i possibili effetti del cambiamento climatico? Si valuti ogni opzione nella seguente tabella da 1 (importante) a 5 (non importante) per indicare quale credi sarà necessario preparare in vista dei possibili effetti del cambiamento climatico nella tua zona di residenza (non tutte le opzioni devono essere valutate)."]
[]
["Ricerca scientifica sugli effetti locali del cambiamento climatico nel luogo in cui vivi"]
["Rafforzamento delle infrastrutture (trasporti, energia, telecomunicazioni) per resistere ai disastri naturali"]
["Preparazione ad inondazioni (incremento della ritenzione idrica dei suoli, sbarramenti, aree alluvionali designate, restrizioni per attività in aree a rischio inondazioni ecc.)"]
["Adattamento dell’agricoltura al cambiamento climatico (per esempio, irrigazione efficiente, selezione di colture, ecc.)"]
["Piani di azione contro le ondate di calore"]
["Aumento di aree verdi in città per fare fronte a ondate di calore/inondazioni"]
["Incoraggiamento del risparmio e riutilizzo dell’acqua"]
["Prevenzione di incendi boschivi (per es. campagne di sensibilizzazione, gestione forestale…)"]
["Rafforzamento e protezione dei litorali"]
["Sistemi di pre-allarme per disastri naturali (ondate di calore, inondazioni, incendi boschivi…)"]
["Comunicazione al pubblico riguardo al bisogno di adattamento al cambiamento climatico"]
["Miglioramento dei prodotti assicurativi contro i danni provenienti dagli effetti del cambiamento climatico"]
["Maggiore comprensione degli effetti sulla sicurezza del cambiamento climatico (per es. flusso dei migranti, scarsità globale di acqua e cibo, commercio agricolo)"]
[]
["Quali misure di adattamento sono di particolare importanza per il tuo settore e perché?"]

{"sheet":"Sezione III","index":3,"n_rows":122,"n_cols":7,"rows_kept":122,"cut":false,"hidden":false,"merged":[[45,0,45,6],[121,0,121,6],[119,0,119,6],[53,0,53,6],[54,0,54,6],[72,0,72,6],[73,0,73,6],[0,0,0,6],[105,0,105,6],[107,0,108,6],[110,0,110,6],[117,0,117,6],[88,0,88,6],[74,0,74,6],[2,0,2,7],[6,0,6,7],[7,0,7,7],[8,0,8,7],[40,0,40,6],[42,0,42,6],[26,0,26,6],[43,0,43,2],[46,0,46,2]]}
["Sezione III - Domande settoriali specifiche"]
[]
["Queste domande sono concentrate su opzioni di riduzione di gas serra specifiche e sono, perciò, dirette principalmente ad attori coinvolti nei diversi settori."]
[]
["Ridurre le emissioni industriali"]
[]
["L’industria ha  varie fonti di emissioni di gas serra e le principali sono legate al consumo energetico, ma una quantità significativa  deriva anche dai processi di trasformazione, ad esempio nei settori dell’acciaio, del cemento e dei prodotti chimici."]
["L’industria ha un ampio numero di opzioni per ridurre le proprie emissioni di gas serra. Queste, in genere, includono un aumento dell’efficienza (per es. l’utilizzo di prodotti e tecnologie più efficienti, il riutilizzo dei rifiuti per produzione di calore, ecc.) e la sostituzione di combustibili fossili (per es. l’elettrificazione dei processi). Tra le varie opzioni, figura anche la sostituzione delle materie prime, attraverso l'utilizzio sia di bio-materiali che di tecnologie di Cattura e Utilizzo del Carbonio (CCU), mirate all'ri-uso delle emissioni di CO2  generate in altri processi di produzione. Tali tecnologie beneficiano inoltre dell’ulteriore integrazione dei settori energetici ed industriali."]
["In questa prospettiva, compilando la tavola che segue, si chiede di indicare per quali settori si ritiene che le opzioni sopra menzionate o altre opzioni di mitigazione siano di particolare importanza ersprimendo altresì la propria visione riguardo al potenziale di mitigazione, alla fattibilità economica e al livello di disponibilità della tecnologia (valutare ogni opzione come Alta, Media, Bassa o Zero per ogni criterio e indicare in quale anno si ritiene che la tecnologia possa essere pronta per impiego su larga scala)."]
[]
[null,"Settore Industriale","Opzione tecnologica","Potenziale di mitigazione","Fattibilità economica","Disponibilità tecnologica","Anno di sviluppo su larga scala"]
[1]
[2]
[3]
[4]
[5]
[6]
[7]
[8]
[9]
[10]
[]
[]
[]
[]
["Ridurre le emissioni nel settore trasporti"]
["Il settore dei trasporti presenta diverse opzioni per ridurre le proprie emissioni di gas serra. Mentre tecnologie a basse o zero-emissioni sono già disponibili e utilizzabili in alcuni sottosettori (per es. autovetture e veicoli commerciali leggeri), lo sviluppo tecnologico è allo stadio iniziale di sviluppo/utilizzo per altri sottosettori (per es. veicoli pesanti, aviazione e trasporto marittimo). \n\nIndica per quali sottosettori del settore dei trasporti vedi la possibilità di ulteriori opzioni di mitigazione e la loro rilevanza. Esprimi la tua visione riguardo al potenziale di mitigazione , alla fattibilità economica e al livello di disponibilità tecnologica (valutare ogni opzione come Alta, Media, Bassa o Zero per ogni criterio e indicare in quale anno credi che la tecnologia sarà pronta per impiego su larga scala)."]
[]
[null,"Sotto-Settore trasporti","Opzione tecnologica","Potenziale di mitigazione","Fattibilità economica","Disponibilità tecnologica","Anno di sviluppo su larga scala"]
[1]
[2]
[3]
[4]
[5]
[6]
[7]
[8]
[9]
[10]
[]
["In aggiunta, si chiede di indicare la propria valutazione riguardo le seguenti opzioni che permettono la riduzione del consumo energetico e delle relative emissioni di CO2:"]
[]
["Per il trasporto di merci, considereresti efficace il passaggio dal trasporto su strada a modalità alternative come su rotaia, corsi d’acqua o navigazione costiera?"]
[]
[]
["Per il primo/ultimo tratto di trasporto in aree urbane (logistica), considereresti efficace il passaggio dal trasporto su strada a modalità alternative come, ad esempio, biciclette cargo (elettriche) o simili veicoli a zero emissioni?"]
[]
[]
[]
[]
[]
["Ridurre le emissioni nel settore agricoltura e zootecnia"]
[]
["Esistono varie opzioni per ridurre le emissioni di gas serra in agricoltura anche se il potenziale di mitigazione, in particolare in relazione alle emissioni diverse dalla CO2 , risulta più limitato rispetto ad altri settori. Inoltre, l’agricoltura è un settore che, attraverso i propri impatti sull’utilizzo dei suoli, influenzerà l'evoluzione degli assorbimenti. "]
["Indica quali opzioni di mitigazione sono di particolare importanza. Valuta ogni opzione come Alta, Media, Bassa o Zero per ogni criterio e indica in quale anno credi che la tecnologia sarà pronta per impiego su larga scala."]
[]
[null,"Settore agricolo ","Opzione tecnologica","Potenziale di mitigazione","Fattibilità economica","Disponibilità tecnologica","Anno di sviluppo su larga scala"]
[1]
[2]
[3]
[4]
[5]
[6]
[7]
[8]
[9]
[10]
[]
[]
[]
["Rimozione della CO2"]
[]
["Molti scienziati considerano che sarà necessario rimuovere una significativa quantità di CO2 dall’atmosfera per centrare gli obiettivi fissati con l'Accordo di Parigi in termini di contenimento dell'incremento di temperatura rispetto ai livelli pre-industriali. "]
["La rimozione della CO2 può avvenire catturando la CO2  attraverso la naturale fotosintesi o attraverso processi chimici artificiali e  immagazzinando la CO2  a lungo termine in siti geologici o all’interno di biomasse o altri (bio)materiali."]
["Valuta da 1 (importante) a 5 (non importante) quale ruolo credi queste opzioni di rimozione e immagazzinamento possono avere in Italia per compensare le emissioni tenendo in considerazione gli aspetti di fattibilità economica e tecnologica, potenziale di immagazzinamento, integrità ambientale e accettazione sociale."]
[]
[]
[]
[]
["Catturare CO2  dall’atmosfera attraverso:",null,null,null,null,null,"Valutazione"]
["Rimboschimento intensivo"]
["Residui di foresta e terreni agricoli"]
["Piantagioni legnose perenni "]
["Cattura Diretta dell’Aria"]
["Altro"]
[]
["Se Altro, specificare:"]
["Verranno accettati testi tra i 3 e 200 caratteri "]
[]
[]
[]
[]
[]
[]
["Immagazzinamento CO2 attraverso:",null,null,null,null,null,"Valutazione"]
["Cattura e Stoccaggio del Carbonio (CCS) con recupero di petrolio e gas"]
["CCS in siti geologici sulla terraferma"]
["CCS in siti geologici a largo"]
["Cattura e Utilizzo del Carbonio (CCU) (prodotti duraturi)"]
["Aumento dell’immagazzinamento permanente di carbonio nel terreno"]
["Aumento dell’immagazzinamento permanente di carbonio nelle piante"]
["Altro"]
[]
["Se Altro, specificare:"]
["I testi tra i 3 e 200 caratteri verranno accettati"]
[]
[]
["Quali principali barriere credi che, al momento, stiano impedendo lo sviluppo su larga scala del CCS? L'applicazione del CCS al comparto delle biomasse può essere una soluzione per ottenere emissione negative?  La CCU, oltre a essere associata alla produzione di carburanti, potrebbe prestarsi alla produzione di materiali innovativi e riutilizzabili amplificando il beneficio ambientale? Ci sono altre tecnologie che dovrebbero essere considerate? In quali politiche credi che l’UE dovrebbe impegnarsi maggiormente per aiutarne lo sviluppo e l’attuazione?"]
[]
[]
[]
[]
[]
[]
[]
["Commenti Addizionali"]
[]
["Se si desidera aggiungere ulteriori informazioni, commenti o suggerimenti inerenti l'oggetto del questionario, si chiede di inserirli di seguito: "]
[]
[]
[]
["In aggiunta, è possibile anche inviare un documento con ulteriori informazioni, commenti o suggerimenti. Si chiede di limitarsi ad un unico documento: in caso fossero necessarie ulteriori informazioni, sarà cura dell'Amministrazione provvedere a contattare le persone di riferimento"]

{"sheet":"Liste di controllo - quest LTS","index":4,"n_rows":276,"n_cols":1,"rows_kept":276,"cut":false,"hidden":true,"merged":[]}
["Come un individuo a titolo personale"]
["A titolo professionale o a nome di un’organizzazione"]
["Belgio"]
["Bulgaria"]
["Cipro"]
["Croazia"]
["Danimarca"]
["Estonia"]
["Finlandia"]
["Francia"]
["Germania"]
["Grecia"]
["Irlanda"]
["Italia"]
["Lettonia"]
["Lituania"]
["Lussemburgo"]
["Malta"]
["Olanda"]
["Polonia"]
["Portogallo"]
["Regno Unito"]
["Repubblica Ceca"]
["Romania"]
["Slovacchia"]
["Slovenia"]
["Spagna"]
["Svezia"]
["Ungheria"]
["Altro"]
[]
["Azienda privata"]
["Consulenza professionale, studio legale, consulente autonomo"]
["Organizzazione di commercio, imprenditoriale o professionale"]
["Organizzazione, piattaforma o network non governativa"]
["Ricerca e accademia"]
["Parti sociali, sindacati"]
["Autorità nazionale, regionale o locale (mista)"]
["Altro"]
[]
["Agricoltura, Caccia e Silvicoltura/Foreste"]
["Intermediazione Finanziaria"]
["Pesca"]
["Attività Immobiliare, di Affitto e di Impresa"]
["Attività Mineraria e di Estrazione"]
["Amministrazione Pubblica e Difesa"]
["Manifattura"]
["Educazione"]
["Rifornimento Elettrico, Gas e Acqua"]
["Servizi Sanitari e Sociali"]
["Costruzioni"]
["Altri Servizi Comunitari, Sociali e Personali"]
["Vendita all’Ingrosso e al Dettaglio"]
["Attività Private Familiari come Datori di Lavoro"]
["Hotel e Ristoranti"]
["Organizzazioni e Corpi Extranazionali"]
["Trasporti, Depositi e Comunicazioni"]
["Altro"]
[]
["Organizzazione Micro o piccola (10 – 49 persone impiegate)"]
["Organizzazione Media  (50 – 249 persone impiegate)"]
["Organizzazione Grande (250 o più persone impiegate)"]
[]
["Sotto il nome fornito: acconsento alla pubblicazione di tutte le informazioni presenti nel mio contributo e dichiaro che nessuna di esse sia soggetta a restrizioni di diritto d’autore che ne impediscano la pubblicazione"]
["Anonimamente: acconsento alla pubblicazione di tutte le informazioni presenti nel mio contributo e dichiaro che nessuna di esse sia soggetta a restrizioni di diritto d’autore che ne impediscano la pubblicazione"]
["In alcun modo – chiedo di mantenere il mio contributo confidenziale (non verrà pubblicato, ma verrà utilizzato internamente agli uffici competenti)"]
[]
["Ridurre le emissioni di gas serra dell’80% entro il 2050 rispetto ai livelli del 1990"]
["Ridurre le emissioni di gas serra tra il 80 e 95% entro il 2050 rispetto ai livelli del 1990"]
["Raggiungere l'equilibrio tra emissioni e assorbimenti entro il 2050 rispetto al 1990"]
[]
["Abitazione (utilizzo energetico, isolamento ecc.)"]
["Mobilità (car sharing, pianificazione urbana ecc.)"]
["Nutrizione (impatto ambientale del cibo ecc.)"]
["Beni e servizi di consumo (impatto ambientale dei beni o servizi)"]
[]
["Sì, l’ho già fatto"]
["Sì, è una priorità"]
["Sì, ma non è una priorità"]
["No, sono in affitto"]
["No, troppo costoso"]
["No, per altri motivi"]
["Nessuna opinione / Non lo so"]
[]
["Sì, l’ho già fatto"]
["Sì, è una priorità"]
["Sì, ma non è una priorità"]
["No, sono in affitto"]
["No, troppo costoso"]
["No, per altri motivi"]
["Nessuna opinione / Non lo so"]
[]
["Sì, l’ho già fatto"]
["Sì, è una priorità"]
["Sì, ma non è una priorità"]
["No, per motivi di privacy"]
["No, non voglio cambiare le mie abitudini di consumo"]
["No, per altri motivi"]
["Nessuna opinione / Non lo so"]
[]
["Sì"]
["No"]
["Non ne vedo l’utilità"]
[]
["Infrastrutture adeguate (contenitori, ecc.)"]
["Maggiore informazione su come attuare la separazione (linee guida, ecc.)"]
["Incentivi finanziari come i depositi cauzionali"]
["Altro"]
[]
["Sì"]
["No"]
["Non lo so"]
[]
["Sì"]
["Sì, ma solo se non è più costosa di una macchina convenzionale a benzina o diesel"]
["Sì, ma solo se sono disponibili sufficienti infrastrutture per il pieno"]
["No"]
[]
["Sì"]
["Sì, ma solo se è presente un servizio facile da usare e conveniente"]
["No"]
[]
["Sì"]
["Sì ma solo se è presente un servizio accessibile e regolare"]
["No, perché sono troppo lenti"]
["No, perché costa troppo"]
["No"]
[]
["Sì"]
["Sì, a patto che sia presente un’alternativa conveniente"]
["No, troppo lento"]
["No, troppo costoso"]
["No, per  altri motivi"]
[]
["Sì"]
["Sì, se combinato con miglior trasporto pubblico"]
["Sì, ma difficile da mettere in atto"]
["No"]
[]
["Sì"]
["Sì, in una certa misura"]
["No, in quanto difficili da realizzare"]
["No"]
[]
["Sì"]
["No"]
[]
["Sì"]
["Sì, se è disponibile l’informazione riguardo l'impatto sul clima dell'alimento (in tutte le fasi di produzione fino alla vendita)"]
["Non se costa di più"]
["No"]
[]
["Sì"]
["No"]
["Avrei bisogno di più informazioni prima di cambiare la mia dieta"]
[]
["Sì lo faccio regolarmente"]
["Sì ma spesso mi mancano le informazioni per farlo"]
["No, non lo considero"]
[]
["Sì"]
["No, qualora fosse più costoso"]
["No, Altro"]
["Nessuna opinione / Non so"]
[]
["Li creerà"]
["Li ridurrà"]
["Nessuna opinione / Non lo so"]
[]
["La transizione verso un sistema a basse emissioni di carbonio"]
["La digitalizzazione"]
["L’impatto della globalizzazione"]
["Politiche socio-economiche (ad esempio, la politica fiscale)"]
["Altro"]
[]
["Sì"]
["Sì, in una certa misura"]
["No"]
["Nessuna opinione / Non lo so"]
[]
["Una opportunità"]
["Una sfida"]
["Entrambe"]
["Nessuna delle due"]
["Nessuna opinione / Non lo so"]
[]
["Non può ridurle"]
["Fino a metà"]
["Di più della metà"]
["Può essere interamente decarbonizzato"]
["Nessuna opinione / Non lo so"]
[]
["Maggiore ricorso all'energia elettrica da rinnovabili nei consumi "]
["Utilizzare carburanti alternativi a basse emissioni di carbonio, come l’idrogeno"]
["Migliorare al massimo l’efficienza energetica"]
["Maggiore applicazione dei principi dell'Economia circolare, incluso il riciclo e il ri-uso"]
["Lo sviluppo di nuovi prodotti e concetti imprenditoriali"]
["Altro"]
["Nessuna opinione / Non lo so"]
[]
["Sì, è una priorità"]
["Sì, ma non è una priorità"]
["No, ha già investito abbastanza"]
["No"]
["Nessuna opinione / Non lo so"]
[]
["La modernizzazione e il rinforzamento della sua competitività"]
["La modernizzazione e il rinforzamento della sua competitività, ma solo se anche le nazioni e le regioni non-UE inizieranno la transizione verso un’economia a basse emissioni di carbonio"]
["Perderà competitività"]
["Nessuna opinione / Non lo so"]
[]
["Sì"]
["Sì, ma solo con il supporto pubblico"]
["Sì, ma solo se anche le nazioni e le regioni non-UE inizieranno la transizione verso un’economia a basse emissioni"]
["No"]
["Nessuna opinione / Non lo so"]
[]
["Sì"]
["No"]
["Nessuna opinione / Non lo so"]
[]
["Sì"]
["No"]
["Nessuna opinione / Non lo so"]
[]
["Sì, attraverso investimenti diretti"]
["Sì, attraverso misure che assicurino finanziamenti a basso costo per investimenti sostenibili"]
["No, perché c’è il rischio di promuovere investimenti inefficienti che portano ad asset obsoleti (stranded assets)"]
["No, perché si rischia di ridurre gli investimenti privati in altri settori (effetto spiazzamento)"]
["Nessuna opinione / Non lo so"]
[]
["Sì"]
["No"]
["Nessuna opinione / Non lo so"]
[]
["Positivo"]
["Negativo"]
["Neutrale"]
[]
["Governo regionale"]
["Paesi e città"]
["Aziende"]
["Iniziative filantropiche"]
["Società civile (ONG, movimenti, ecc.)"]
["Gruppi religiosi"]
[]
[1]
[2]
[3]
[4]
[5]
[]
["Sì"]
["No, troppo lento o complicato"]
["No, troppo costoso"]
["Nessuna opinione/Non lo so"]
[]
["Sì, lo sto già facendo"]
["Sì, in futuro"]
["No, troppo lento"]
["No"]
["Nessuna opinione/ Non lo so"]
[]
[]
["x"]
[]
["Alta "]
["Media"]
["Bassa"]
["Zero"]
[]
[1]
[2]
[3]
[4]
[5]

{"sheet":"FORMULE","index":5,"n_rows":49,"n_cols":60,"rows_kept":49,"cut":false,"hidden":true,"merged":[]}
[]
["SEZIONE I"]
["File","Soggetto","Nome","Mail","Stato","Se_altro_sogg","Tipo_org","Se_altro_tipo","Sett_econom","Se_altro_sett","Aree_compet","Dimens_org"]
[{"$f":"MID(CELL(\"filename\",A6),FIND(\"[\",CELL(\"filename\",A6))+1,FIND(\"]\",CELL(\"filename\",A6))-FIND(\"[\",CELL(\"filename\",A6))-1)","v":"Questionario consultazione LTS_ver1_3_NON PROTETTO_NOMACRO.xlsm"},{"$f":"'Sezione I'!$A$4","v":0},{"$f":"'Sezione I'!$A$7","v":0},{"$f":"'Sezione I'!$A$9","v":0},{"$f":"'Sezione I'!$A$11","v":0},{"$f":"'Sezione I'!$A$13","v":0},{"$f":"'Sezione I'!$A$15","v":0},{"$f":"'Sezione I'!$A$17","v":0},{"$f":"'Sezione I'!$A$20","v":0},{"$f":"'Sezione I'!$A$22","v":0},{"$f":"'Sezione I'!$A$29","v":0},{"$f":"'Sezione I'!$A$32","v":0}]
[]
["SEZIONE II-A"]
["File","Opport","Aspetti","Prest_energ_edifici","Altri_motivi01","Risc_Raffr_Certif","Altri_motivi02","Fornit_elettr","Altri_motivi03","Contator_intellig","Altri_motivi04","Aumento_riciclo","Separi_rifiuti","Aumento_separ","Altri_motivi04","Veicolo_no_fossile","Car_Share","Brevi_dist_mezzi_pubblici","Lunghe_dist_altern","Se_no_specif","Pianif_urbana","Informatica","Info_alimenti","Acquisto_alimenti","Consumo_alimenti","Impatto_servizi","Acquisto_servizi","Se_altro_Spec","Riduz_posti_lavoro","Influenza_lavoro","Se_altro_Spec","Formaz_transiz","Transiz_opp_sfida","Riduz_emis_settore","Percorso_riduz_emis_settore","Se_altro_Spec","Invest_tecn","Integraz_settore","Se_si_come","Effetti_trans","Trans_moderniz","Affrontare_opp_sfide"]
[{"$f":"A4","v":"Questionario consultazione LTS_ver1_3_NON PROTETTO_NOMACRO.xlsm"},{"$f":"'Sezione II'!A7","v":0},{"$f":"'Sezione II'!A13","v":0},{"$f":"'Sezione II'!A22","v":0},{"$f":"'Sezione II'!A25","v":0},{"$f":"'Sezione II'!A28","v":0},{"$f":"'Sezione II'!A31","v":0},{"$f":"'Sezione II'!A34","v":0},{"$f":"'Sezione II'!A37","v":0},{"$f":"'Sezione II'!A40","v":0},{"$f":"'Sezione II'!A43","v":0},{"$f":"'Sezione II'!A49","v":0},{"$f":"'Sezione II'!A52","v":0},{"$f":"'Sezione II'!A55","v":0},{"$f":"'Sezione II'!A58","v":0},{"$f":"'Sezione II'!A68","v":0},{"$f":"'Sezione II'!A71","v":0},{"$f":"'Sezione II'!A74","v":0},{"$f":"'Sezione II'!A77","v":0},{"$f":"'Sezione II'!A80","v":0},{"$f":"'Sezione II'!A84","v":0},{"$f":"'Sezione II'!A87","v":0},{"$f":"'Sezione II'!A97","v":0},{"$f":"'Sezione II'!A100","v":0},{"$f":"'Sezione II'!A103","v":0},{"$f":"'Sezione II'!A110","v":0},{"$f":"'Sezione II'!A113","v":0},{"$f":"'Sezione II'!A116","v":0},{"$f":"'Sezione II'!A132","v":0},{"$f":"'Sezione II'!A135","v":0},{"$f":"'Sezione II'!A138","v":0},{"$f":"'Sezione II'!A142","v":0},{"$f":"'Sezione II'!A153","v":0},{"$f":"'Sezione II'!A156","v":0},{"$f":"'Sezione II'!A159","v":0},{"$f":"'Sezione II'!A162","v":0},{"$f":"'Sezione II'!A166","v":0},{"$f":"'Sezione II'!A169","v":0},{"$f":"'Sezione II'!A172","v":0},{"$f":"'Sezione II'!A176","v":0},{"$f":"'Sezione II'!A179","v":0},{"$f":"'Sezione II'!A182","v":0}]
[]
["SEZIONE II-B"]
["File","Effic_energet","Rinnovabili","Altre_rinnov","Biogas","X","Biomassa solida","Biocombustibili","Idrgeno","Combust_da_idrogeno","Combust_CCS","Batterie","Altro","Se_Altro_Spec","Opport","Foresta_fonte_biomassa_FER","Foresta_fonte_materiale","Foresta_assorbim","Agricoltura_fonte_materie","Agricoltura_fonte_bioenergie","1-colture","2-scarti","3-biomassa","Riserve_carbonio","Contributo_uso_suolo","Formazione","Campagne_formazione_locali","Campagne_formazione_nazionali_UE","Energia","Processi_industriali","Trasporti","Informatica","Agricoltura","Altri_settori","Se_altri_settori","Diffusione_larga_scala","Invest_addizionali","Carenza_finanziam","Settore_pubblico","Trasparenza_imprese","Transizione_circolare","Digitalizzazione","Shared_economy","Integrazione_settori","Quali_attori","Esempio","Ricerca_scientifica","Rafforzamento_infrastrutture","Preparazione_inondazioni","Adattament_agricoltura","Piani_azione_ondate_calore","Aumento_aree_verdi","Incoraggiamento_risparmio_acqua","Prevenzione_incendi","Protezione_litorali","Sistemi_pre_allarme","Comunicazione_pubblico","Prodotti_assicurativi","Comprensione_effetti","Quali_misure_adattamento"]
[{"$f":"A8","v":"Questionario consultazione LTS_ver1_3_NON PROTETTO_NOMACRO.xlsm"},{"$f":"'Sezione II'!B190","v":0},{"$f":"'Sezione II'!B191","v":0},{"$f":"'Sezione II'!B192","v":0},{"$f":"'Sezione II'!B193","v":0},{"$f":"'Sezione II'!B194","v":0},{"$f":"'Sezione II'!B195","v":0},{"$f":"'Sezione II'!B196","v":0},{"$f":"'Sezione II'!B197","v":0},{"$f":"'Sezione II'!B198","v":0},{"$f":"'Sezione II'!B199","v":0},{"$f":"'Sezione II'!B200","v":0},{"$f":"'Sezione II'!B201","v":0},{"$f":"'Sezione II'!A204","v":0},{"$f":"'Sezione II'!A208","v":0},{"$f":"'Sezione II'!B217","v":0},{"$f":"'Sezione II'!B218","v":0},{"$f":"'Sezione II'!B219","v":0},{"$f":"'Sezione II'!B220","v":0},{"$f":"'Sezione II'!B221","v":0},{"$f":"'Sezione II'!B222","v":0},{"$f":"'Sezione II'!B223","v":0},{"$f":"'Sezione II'!B224","v":0},{"$f":"'Sezione II'!B225","v":0},{"$f":"'Sezione II'!A228","v":0},{"$f":"'Sezione II'!B236","v":0},{"$f":"'Sezione II'!B237","v":0},{"$f":"'Sezione II'!B238","v":0},{"$f":"'Sezione II'!B242","v":0},{"$f":"'Sezione II'!B243","v":0},{"$f":"'Sezione II'!B244","v":0},{"$f":"'Sezione II'!B245","v":0},{"$f":"'Sezione II'!B246","v":0},{"$f":"'Sezione II'!B247","v":0},{"$f":"'Sezione II'!A259","v":0},{"$f":"'Sezione II'!A263","v":0},{"$f":"'Sezione II'!A271","v":0},{"$f":"'Sezione II'!A274","v":0},{"$f":"'Sezione II'!A277","v":0},{"$f":"'Sezione II'!A280","v":0},{"$f":"'Sezione II'!A290","v":0},{"$f":"'Sezione II'!A293","v":0},{"$f":"'Sezione II'!A296","v":0},{"$f":"'Sezione II'!A299","v":0},{"$f":"'Sezione II'!A306","v":0},{"$f":"'Sezione II'!A309","v":0},{"$f":"'Sezione II'!B316","v":0},{"$f":"'Sezione II'!B317","v":0},{"$f":"'Sezione II'!B318","v":0},{"$f":"'Sezione II'!B319","v":0},{"$f":"'Sezione II'!B320","v":0},{"$f":"'Sezione II'!B321","v":0},{"$f":"'Sezione II'!B322","v":0},{"$f":"'Sezione II'!B323","v":0},{"$f":"'Sezione II'!B324","v":0},{"$f":"'Sezione II'!B325","v":0},{"$f":"'Sezione II'!B326","v":0},{"$f":"'Sezione II'!B327","v":0},{"$f":"'Sezione II'!B328","v":0},{"$f":"'Sezione II'!$A$331","v":0}]
[]
["SEZIONE III-A"]
["File","Settore","Subsector","Opz_tecn","Potenz_mitigaz","Fatt_economica","Disp_tecnologica","Anno_sviluppo_largascala"]
[{"$f":"A12","v":"Questionario consultazione LTS_ver1_3_NON PROTETTO_NOMACRO.xlsm"},"IND",{"$f":"'Sezione III'!B12","v":0},{"$f":"'Sezione III'!C12","v":0},{"$f":"'Sezione III'!D12","v":0},{"$f":"'Sezione III'!E12","v":0},{"$f":"'Sezione III'!F12","v":0},{"$f":"'Sezione III'!G12","v":0}]
[{"$f":"A16","v":"Questionario consultazione LTS_ver1_3_NON PROTETTO_NOMACRO.xlsm"},"IND",{"$f":"'Sezione III'!B13","v":0},{"$f":"'Sezione III'!C13","v":0},{"$f":"'Sezione III'!D13","v":0},{"$f":"'Sezione III'!E13","v":0},{"$f":"'Sezione III'!F13","v":0},{"$f":"'Sezione III'!G13","v":0}]
[{"$f":"A17","v":"Questionario consultazione LTS_ver1_3_NON PROTETTO_NOMACRO.xlsm"},"IND",{"$f":"'Sezione III'!B14","v":0},{"$f":"'Sezione III'!C14","v":0},{"$f":"'Sezione III'!D14","v":0},{"$f":"'Sezione III'!E14","v":0},{"$f":"'Sezione III'!F14","v":0},{"$f":"'Sezione III'!G14","v":0}]
["Questionario consultazione LTS_ver1_3_NON PROTETTO_NOMACRO.xlsm","IND",{"$f":"'Sezione III'!B15","v":0},{"$f":"'Sezione III'!C15","v":0},{"$f":"'Sezione III'!D15","v":0},{"$f":"'Sezione III'!E15","v":0},{"$f":"'Sezione III'!F15","v":0},{"$f":"'Sezione III'!G15","v":0}]
["Questionario consultazione LTS_ver1_3_NON PROTETTO_NOMACRO.xlsm","IND",{"$f":"'Sezione III'!B16","v":0},{"$f":"'Sezione III'!C16","v":0},{"$f":"'Sezione III'!D16","v":0},{"$f":"'Sezione III'!E16","v":0},{"$f":"'Sezione III'!F16","v":0},{"$f":"'Sezione III'!G16","v":0}]
["Questionario consultazione LTS_ver1_3_NON PROTETTO_NOMACRO.xlsm","IND",{"$f":"'Sezione III'!B17","v":0},{"$f":"'Sezione III'!C17","v":0},{"$f":"'Sezione III'!D17","v":0},{"$f":"'Sezione III'!E17","v":0},{"$f":"'Sezione III'!F17","v":0},{"$f":"'Sezione III'!G17","v":0}]
["Questionario consultazione LTS_ver1_3_NON PROTETTO_NOMACRO.xlsm","IND",{"$f":"'Sezione III'!B18","v":0},{"$f":"'Sezione III'!C18","v":0},{"$f":"'Sezione III'!D18","v":0},{"$f":"'Sezione III'!E18","v":0},{"$f":"'Sezione III'!F18","v":0},{"$f":"'Sezione III'!G18","v":0}]
["Questionario consultazione LTS_ver1_3_NON PROTETTO_NOMACRO.xlsm","IND",{"$f":"'Sezione III'!B19","v":0},{"$f":"'Sezione III'!C19","v":0},{"$f":"'Sezione III'!D19","v":0},{"$f":"'Sezione III'!E19","v":0},{"$f":"'Sezione III'!F19","v":0},{"$f":"'Sezione III'!G19","v":0}]
["Questionario consultazione LTS_ver1_3_NON PROTETTO_NOMACRO.xlsm","IND",{"$f":"'Sezione III'!B20","v":0},{"$f":"'Sezione III'!C20","v":0},{"$f":"'Sezione III'!D20","v":0},{"$f":"'Sezione III'!E20","v":0},{"$f":"'Sezione III'!F20","v":0},{"$f":"'Sezione III'!G20","v":0}]
["Questionario consultazione LTS_ver1_3_NON PROTETTO_NOMACRO.xlsm","IND",{"$f":"'Sezione III'!B21","v":0},{"$f":"'Sezione III'!C21","v":0},{"$f":"'Sezione III'!D21","v":0},{"$f":"'Sezione III'!E21","v":0},{"$f":"'Sezione III'!F21","v":0},{"$f":"'Sezione III'!G21","v":0}]
["Questionario consultazione LTS_ver1_3_NON PROTETTO_NOMACRO.xlsm","TRA",{"$f":"'Sezione III'!B30","v":0},{"$f":"'Sezione III'!C30","v":0},{"$f":"'Sezione III'!D30","v":0},{"$f":"'Sezione III'!E30","v":0},{"$f":"'Sezione III'!F30","v":0},{"$f":"'Sezione III'!G30","v":0}]
["Questionario consultazione LTS_ver1_3_NON PROTETTO_NOMACRO.xlsm","TRA",{"$f":"'Sezione III'!B31","v":0},{"$f":"'Sezione III'!C31","v":0},{"$f":"'Sezione III'!D31","v":0},{"$f":"'Sezione III'!E31","v":0},{"$f":"'Sezione III'!F31","v":0},{"$f":"'Sezione III'!G31","v":0}]
["Questionario consultazione LTS_ver1_3_NON PROTETTO_NOMACRO.xlsm","TRA",{"$f":"'Sezione III'!B32","v":0},{"$f":"'Sezione III'!C32","v":0},{"$f":"'Sezione III'!D32","v":0},{"$f":"'Sezione III'!E32","v":0},{"$f":"'Sezione III'!F32","v":0},{"$f":"'Sezione III'!G32","v":0}]
["Questionario consultazione LTS_ver1_3_NON PROTETTO_NOMACRO.xlsm","TRA",{"$f":"'Sezione III'!B33","v":0},{"$f":"'Sezione III'!C33","v":0},{"$f":"'Sezione III'!D33","v":0},{"$f":"'Sezione III'!E33","v":0},{"$f":"'Sezione III'!F33","v":0},{"$f":"'Sezione III'!G33","v":0}]
["Questionario consultazione LTS_ver1_3_NON PROTETTO_NOMACRO.xlsm","TRA",{"$f":"'Sezione III'!B34","v":0},{"$f":"'Sezione III'!C34","v":0},{"$f":"'Sezione III'!D34","v":0},{"$f":"'Sezione III'!E34","v":0},{"$f":"'Sezione III'!F34","v":0},{"$f":"'Sezione III'!G34","v":0}]
["Questionario consultazione LTS_ver1_3_NON PROTETTO_NOMACRO.xlsm","TRA",{"$f":"'Sezione III'!B35","v":0},{"$f":"'Sezione III'!C35","v":0},{"$f":"'Sezione III'!D35","v":0},{"$f":"'Sezione III'!E35","v":0},{"$f":"'Sezione III'!F35","v":0},{"$f":"'Sezione III'!G35","v":0}]
["Questionario consultazione LTS_ver1_3_NON PROTETTO_NOMACRO.xlsm","TRA",{"$f":"'Sezione III'!B36","v":0},{"$f":"'Sezione III'!C36","v":0},{"$f":"'Sezione III'!D36","v":0},{"$f":"'Sezione III'!E36","v":0},{"$f":"'Sezione III'!F36","v":0},{"$f":"'Sezione III'!G36","v":0}]
["Questionario consultazione LTS_ver1_3_NON PROTETTO_NOMACRO.xlsm","TRA",{"$f":"'Sezione III'!B37","v":0},{"$f":"'Sezione III'!C37","v":0},{"$f":"'Sezione III'!D37","v":0},{"$f":"'Sezione III'!E37","v":0},{"$f":"'Sezione III'!F37","v":0},{"$f":"'Sezione III'!G37","v":0}]
["Questionario consultazione LTS_ver1_3_NON PROTETTO_NOMACRO.xlsm","TRA",{"$f":"'Sezione III'!B38","v":0},{"$f":"'Sezione III'!C38","v":0},{"$f":"'Sezione III'!D38","v":0},{"$f":"'Sezione III'!E38","v":0},{"$f":"'Sezione III'!F38","v":0},{"$f":"'Sezione III'!G38","v":0}]
["Questionario consultazione LTS_ver1_3_NON PROTETTO_NOMACRO.xlsm","TRA",{"$f":"'Sezione III'!B39","v":0},{"$f":"'Sezione III'!C39","v":0},{"$f":"'Sezione III'!D39","v":0},{"$f":"'Sezione III'!E39","v":0},{"$f":"'Sezione III'!F39","v":0},{"$f":"'Sezione III'!G39","v":0}]
["Questionario consultazione LTS_ver1_3_NON PROTETTO_NOMACRO.xlsm","AGR",{"$f":"'Sezione III'!B58","v":0},{"$f":"'Sezione III'!C58","v":0},{"$f":"'Sezione III'!D58","v":0},{"$f":"'Sezione III'!E58","v":0},{"$f":"'Sezione III'!F58","v":0},{"$f":"'Sezione III'!G58","v":0}]
["Questionario consultazione LTS_ver1_3_NON PROTETTO_NOMACRO.xlsm","AGR",{"$f":"'Sezione III'!B59","v":0},{"$f":"'Sezione III'!C59","v":0},{"$f":"'Sezione III'!D59","v":0},{"$f":"'Sezione III'!E59","v":0},{"$f":"'Sezione III'!F59","v":0},{"$f":"'Sezione III'!G59","v":0}]
["Questionario consultazione LTS_ver1_3_NON PROTETTO_NOMACRO.xlsm","AGR",{"$f":"'Sezione III'!B60","v":0},{"$f":"'Sezione III'!C60","v":0},{"$f":"'Sezione III'!D60","v":0},{"$f":"'Sezione III'!E60","v":0},{"$f":"'Sezione III'!F60","v":0},{"$f":"'Sezione III'!G60","v":0}]
["Questionario consultazione LTS_ver1_3_NON PROTETTO_NOMACRO.xlsm","AGR",{"$f":"'Sezione III'!B61","v":0},{"$f":"'Sezione III'!C61","v":0},{"$f":"'Sezione III'!D61","v":0},{"$f":"'Sezione III'!E61","v":0},{"$f":"'Sezione III'!F61","v":0},{"$f":"'Sezione III'!G61","v":0}]
["Questionario consultazione LTS_ver1_3_NON PROTETTO_NOMACRO.xlsm","AGR",{"$f":"'Sezione III'!B62","v":0},{"$f":"'Sezione III'!C62","v":0},{"$f":"'Sezione III'!D62","v":0},{"$f":"'Sezione III'!E62","v":0},{"$f":"'Sezione III'!F62","v":0},{"$f":"'Sezione III'!G62","v":0}]
["Questionario consultazione LTS_ver1_3_NON PROTETTO_NOMACRO.xlsm","AGR",{"$f":"'Sezione III'!B63","v":0},{"$f":"'Sezione III'!C63","v":0},{"$f":"'Sezione III'!D63","v":0},{"$f":"'Sezione III'!E63","v":0},{"$f":"'Sezione III'!F63","v":0},{"$f":"'Sezione III'!G63","v":0}]
["Questionario consultazione LTS_ver1_3_NON PROTETTO_NOMACRO.xlsm","AGR",{"$f":"'Sezione III'!B64","v":0},{"$f":"'Sezione III'!C64","v":0},{"$f":"'Sezione III'!D64","v":0},{"$f":"'Sezione III'!E64","v":0},{"$f":"'Sezione III'!F64","v":0},{"$f":"'Sezione III'!G64","v":0}]
["Questionario consultazione LTS_ver1_3_NON PROTETTO_NOMACRO.xlsm","AGR",{"$f":"'Sezione III'!B65","v":0},{"$f":"'Sezione III'!C65","v":0},{"$f":"'Sezione III'!D65","v":0},{"$f":"'Sezione III'!E65","v":0},{"$f":"'Sezione III'!F65","v":0},{"$f":"'Sezione III'!G65","v":0}]
["Questionario consultazione LTS_ver1_3_NON PROTETTO_NOMACRO.xlsm","AGR",{"$f":"'Sezione III'!B66","v":0},{"$f":"'Sezione III'!C66","v":0},{"$f":"'Sezione III'!D66","v":0},{"$f":"'Sezione III'!E66","v":0},{"$f":"'Sezione III'!F66","v":0},{"$f":"'Sezione III'!G66","v":0}]
["Questionario consultazione LTS_ver1_3_NON PROTETTO_NOMACRO.xlsm","AGR",{"$f":"'Sezione III'!B67","v":0},{"$f":"'Sezione III'!C67","v":0},{"$f":"'Sezione III'!D67","v":0},{"$f":"'Sezione III'!E67","v":0},{"$f":"'Sezione III'!F67","v":0},{"$f":"'Sezione III'!G67","v":0}]
[]
["SEZIONE III-B"]
["File","Altern_Tra_merci01","Altern_Tra_merci02","Rimbos","Residui","Piantagioni","Cattura_Aria","Altro_Cattura","Se_Altro_Cattura","CCS_oilgas","CCS_geoterra","CCS_geomare","CCU","Immag_terreno","Immag_piante","Altro_Storage","Se_Altro_Storage","Commenti"]
[{"$f":"A45","v":"Questionario consultazione LTS_ver1_3_NON PROTETTO_NOMACRO.xlsm"},{"$f":"'Sezione III'!A44","v":0},{"$f":"'Sezione III'!A47","v":0},{"$f":"'Sezione III'!G81","v":0},{"$f":"'Sezione III'!G82","v":0},{"$f":"'Sezione III'!G83","v":0},{"$f":"'Sezione III'!G84","v":0},{"$f":"'Sezione III'!G85","v":0},{"$f":"'Sezione III'!$A$89","v":0},{"$f":"'Sezione III'!G96","v":0},{"$f":"'Sezione III'!G97","v":0},{"$f":"'Sezione III'!G98","v":0},{"$f":"'Sezione III'!G99","v":0},{"$f":"'Sezione III'!G100","v":0},{"$f":"'Sezione III'!G101","v":0},{"$f":"'Sezione III'!G102","v":0},{"$f":"'Sezione III'!A106","v":0},{"$f":"'Sezione III'!A120","v":0}]